bitfinex-derivatives/quotes_BTCF0:USTF0_20230702
["timestamp","ask_amount","ask_price","bid_price","bid_amount"]
[1688318677306,0.02726911,30541.0,30540.0,0.02013609]
[1688318679220,0.02726911,30541.0,30540.0,0.00049109]
[1688318680618,0.02720911,30541.0,30540.0,0.00049109]
[1688318682324,0.35100426,30541.0,30540.0,0.00049109]
[1688318682820,0.35100426,30541.0,30540.0,0.02013609]
[1688318683021,0.35100426,30541.0,30540.0,0.00049109]
[1688318683419,0.179628,30541.0,30540.0,0.00049109]
[1688318684012,0.179628,30541.0,30540.0,0.02013609]
[1688318689019,0.179628,30541.0,30540.0,0.74793609]
[1688318689412,0.179628,30541.0,30540.0,0.78501523]
[1688318689824,0.179628,30541.0,30540.0,0.76678554]
[1688318690728,0.179628,30541.0,30540.0,0.78501523]
[1688318690919,0.26818607,30541.0,30540.0,0.78501523]
[1688318691116,0.00762511,30541.0,30540.0,0.78501523]
[1688318691515,0.02726911,30541.0,30540.0,0.78501523]
[1688318691719,0.28783007,30541.0,30540.0,0.76678554]
[1688318691931,0.35556555,30541.0,30540.0,0.76678554]
[1688318692225,0.35556555,30541.0,30540.0,0.74793609]
[1688318692617,0.09500459,30541.0,30540.0,0.74793609]
[1688318692927,0.09500459,30541.0,30540.0,0.78501523]
[1688318693815,0.09500459,30541.0,30540.0,0.76678554]
[1688318694631,0.38813516,30541.0,30540.0,0.78501523]
[1688318695510,0.38813516,30541.0,30540.0,0.76678554]
[1688318699024,0.38813516,30541.0,30540.0,0.78501523]
[1688318699225,0.38813516,30541.0,30540.0,0.76678554]
[1688318701015,0.36849116,30541.0,30540.0,0.78501523]
[1688318701215,0.62916729,30541.0,30540.0,0.78501523]
[1688318701410,0.33603672,30541.0,30540.0,0.78501523]
[1688318702327,0.07536059,30541.0,30540.0,0.78501523]
[1688318702523,0.26836673,30541.0,30540.0,0.78501523]
[1688318702718,0.07536059,30541.0,30540.0,0.78501523]
[1688318703119,0.26836741,30541.0,30540.0,0.78501523]
[1688318703326,0.32570064,30546.0,30543.0,0.05]
[1688318703618,0.32570064,30546.0,30545.0,1.0851]
[1688318703818,0.06772393,30546.0,30545.0,1.14182014]
[1688318705029,0.019635,30555.0,30548.0,0.01964]
[1688318705230,0.019635,30555.0,30553.0,0.019636]
[1688318705423,0.557724,30559.0,30554.0,1.12937914]
[1688318705620,0.577357,30559.0,30558.0,0.61194628]
[1688318705816,0.577357,30559.0,30558.0,0.52751805]
[1688318706025,0.596357,30559.0,30558.0,0.56459719]
[1688318706621,0.577357,30559.0,30558.0,0.56459719]
[1688318706822,0.019633,30559.0,30558.0,0.56459719]
[1688318708221,0.019633,30559.0,30558.0,0.40548245]
[1688318708423,0.019633,30559.0,30558.0,0.386633]
[1688318708628,0.03485056,30559.0,30558.0,0.386633]
[1688318709124,0.03485056,30559.0,30558.0,0.40548245]
[1688318709918,0.03485056,30559.0,30558.0,0.42371214]
[1688318712430,0.03485056,30559.0,30557.0,0.3656]
[1688318712731,0.019635,30557.0,30556.0,0.058901]
[1688318713228,0.0348524,30557.0,30556.0,0.058901]
[1688318714118,0.0348524,30557.0,30556.0,0.07713069]
[1688318714323,0.0348524,30557.0,30556.0,0.058901]
[1688318715623,0.0348524,30557.0,30555.0,0.05939085]
[1688318717932,0.0348524,30557.0,30555.0,0.0782403]
[1688318718639,0.0348524,30557.0,30555.0,0.05939085]
[1688318719737,0.0348524,30557.0,30555.0,0.05924675]
[1688318720037,0.0152174,30557.0,30556.0,0.367]
[1688318720240,0.0152174,30557.0,30556.0,0.753636]
[1688318720424,0.3225,30560.0,30556.0,0.753636]
[1688318720741,0.01521717,30557.0,30556.0,0.386636]
[1688318720928,0.019635,30557.0,30556.0,0.019636]
[1688318721234,0.03485215,30557.0,30556.0,0.019636]
[1688318722226,0.03485215,30557.0,30555.0,0.36749085]
[1688318722433,0.367,30556.0,30555.0,0.00049085]
[1688318722631,0.386636,30556.0,30555.0,0.00049085]
[1688318722835,0.3951941,30556.0,30555.0,0.00049085]
[1688318723841,0.4016941,30556.0,30555.0,0.00049085]
[1688318724031,0.4016941,30556.0,30550.0,0.058919]
[1688318724235,0.019638,30552.0,30551.0,0.019638]
[1688318724429,0.747438,30552.0,30551.0,0.019638]
[1688318724638,0.8089788,30552.0,30551.0,0.019638]
[1688318725840,0.8089788,30552.0,30548.0,0.05941296]
[1688318725841,0.8089788,30552.0,30549.0,0.01964]
[1688318727332,0.0065,30551.0,30549.0,0.01964]
[1688318727539,0.019639,30550.0,30549.0,0.01964]
[1688318728038,0.02682582,30550.0,30549.0,0.01964]
[1688318728235,0.00718682,30550.0,30549.0,0.40548945]
[1688318728630,0.049096,30553.0,30549.0,0.40548945]
[1688318728943,0.00750967,30550.0,30549.0,0.38664]
[1688318729150,0.049096,30553.0,30549.0,0.38664]
[1688318729337,0.00750956,30550.0,30549.0,0.38664]
[1688318729533,0.049096,30553.0,30549.0,0.42371914]
[1688318729734,0.049096,30553.0,30549.0,0.38664]
[1688318729933,0.00750953,30552.0,30549.0,0.38664]
[1688318730140,0.00750953,30552.0,30550.0,0.03707914]
[1688318730453,0.706438,30554.0,30551.0,0.386639]
[1688318730454,0.339438,30554.0,30551.0,0.386639]
[1688318730634,0.339438,30554.0,30553.0,0.367]
[1688318730835,0.339438,30554.0,30553.0,0.386637]
[1688318731035,0.339438,30554.0,30553.0,0.40548645]
[1688318731646,0.339438,30554.0,30553.0,0.42371614]
[1688318732051,0.339438,30554.0,30553.0,0.40548645]
[1688318732348,0.339438,30554.0,30553.0,0.386637]
[1688318735045,0.339438,30554.0,30553.0,0.42371614]
[1688318735250,0.339438,30554.0,30553.0,0.40548645]
[1688318736552,0.05488647,30555.0,30553.0,0.40548645]
[1688318736735,0.07452247,30555.0,30554.0,0.3656]
[1688318737045,0.07452247,30555.0,30554.0,0.40408645]
[1688318737240,0.07452247,30555.0,30554.0,0.385237]
[1688318737545,0.02012696,30555.0,30554.0,0.40408645]
[1688318738138,0.00049096,30555.0,30554.0,0.38444945]
[1688318738636,0.00049096,30555.0,30554.0,0.40267914]
[1688318738837,0.00049096,30555.0,30554.0,0.76347914]
[1688318740341,0.315,30559.0,30554.0,0.7264]
[1688318740549,0.315,30559.0,30558.0,0.3655]
[1688318741053,0.315,30559.0,30558.0,0.38434945]
[1688318741548,0.315,30559.0,30558.0,0.3655]
[1688318742846,0.315,30559.0,30558.0,0.38434945]
[1688318743153,0.32494016,30559.0,30558.0,0.38434945]
[1688318743449,0.64964375,30559.0,30558.0,0.38434945]
[1688318743660,0.71734828,30559.0,30558.0,0.38434945]
[1688318743840,0.71734828,30559.0,30558.0,0.3655]
[1688318744248,0.47727523,30559.0,30558.0,0.3655]
[1688318744654,0.47727523,30559.0,30558.0,0.38434945]
[1688318746051,0.47727523,30559.0,30558.0,0.3655]
[1688318746243,0.47727523,30559.0,30558.0,0.38434945]
[1688318747550,0.16227523,30559.0,30558.0,0.38434945]
[1688318749651,0.16227523,30559.0,30558.0,0.2458]
[1688318751051,0.40346279,30559.0,30558.0,0.2458]
[1688318751845,0.40346279,30559.0,30558.0,0.26464945]
[1688318752253,0.16227637,30559.0,30558.0,0.26464945]
[1688318752847,0.16227637,30559.0,30558.0,0.2458]
[1688318757962,0.16227637,30559.0,30558.0,0.26464945]
[1688318762358,0.16227637,30559.0,30558.0,0.2458]
[1688318762759,0.26383426,30559.0,30558.0,0.2458]
[1688318763858,0.26383426,30559.0,30558.0,0.26464945]
[1688318764459,0.16227637,30559.0,30558.0,0.26464945]
[1688318766062,0.16227637,30559.0,30558.0,0.2458]
[1688318766861,0.16227637,30559.0,30558.0,0.26464945]
[1688318768366,0.16227637,30559.0,30558.0,0.28428345]
[1688318769256,0.16227637,30559.0,30558.0,0.30251314]
[1688318769765,0.16227637,30559.0,30558.0,0.28428345]
[1688318771065,0.16227637,30559.0,30558.0,0.30251314]
[1688318771659,0.16227637,30559.0,30558.0,0.28428345]
[1688318774471,0.16227637,30559.0,30558.0,0.265434]
[1688318776069,0.26383125,30559.0,30558.0,0.265434]
[1688318776272,0.16227637,30559.0,30558.0,0.265434]
[1688318776470,0.16227637,30559.0,30558.0,0.28428345]
[1688318777462,0.16227637,30559.0,30558.0,0.30251314]
[1688318778769,0.16227637,30559.0,30558.0,0.28428345]
[1688318779171,0.16227637,30559.0,30558.0,0.265434]
[1688318781272,0.16227637,30559.0,30558.0,0.28428345]
[1688318786279,0.16227637,30559.0,30558.0,0.30251314]
[1688318786591,0.16227637,30559.0,30558.0,0.28428345]
[1688318786779,0.16227637,30559.0,30558.0,0.30251314]
[1688318786979,0.16227637,30559.0,30558.0,0.28428345]
[1688318787479,0.16227637,30559.0,30558.0,0.30251314]
[1688318787686,0.16227637,30559.0,30558.0,0.28428345]
[1688318789889,0.16227637,30559.0,30558.0,0.265434]
[1688318791099,0.18191037,30559.0,30558.0,0.28428345]
[1688318795804,0.18191037,30559.0,30558.0,0.265434]
[1688318796507,0.18191037,30559.0,30558.0,0.28428345]
[1688318796705,0.18191037,30559.0,30558.0,0.265434]
[1688318797095,0.18191037,30559.0,30558.0,0.019634]
[1688318797096,0.42711037,30559.0,30558.0,0.019634]
[1688318798092,0.52866119,30559.0,30558.0,0.019634]
[1688318800310,1.08638519,30559.0,30558.0,0.019634]
[1688318803821,0.98483437,30559.0,30558.0,0.019634]
[1688318805017,0.42711037,30559.0,30558.0,0.019634]
[1688318822532,0.42711037,30559.0,30558.0,0.265434]
[1688318823324,0.16227637,30559.0,30558.0,0.28568345]
[1688318824026,0.16227637,30559.0,30558.0,0.30391314]
[1688318824726,0.16227637,30559.0,30558.0,0.28568345]
[1688318825634,0.16227637,30559.0,30558.0,0.30391314]
[1688318826229,0.40364806,30559.0,30558.0,0.30391314]
[1688318826430,0.40364806,30559.0,30558.0,0.28568345]
[1688318828241,0.40364806,30559.0,30558.0,0.30391314]
[1688318828541,0.40364806,30559.0,30558.0,0.28568345]
[1688318829533,0.07764469,30559.0,30558.0,0.28568345]
[1688318833636,0.16226447,30559.0,30558.0,0.28568345]
[1688318837534,0.18189847,30559.0,30558.0,0.266834]
[1688318837738,0.42949847,30559.0,30558.0,0.019634]
[1688318862954,0.79029847,30559.0,30558.0,0.019634]
[1688318872466,0.54269847,30559.0,30558.0,0.266634]
[1688318875366,0.18189847,30559.0,30558.0,0.266634]
[1688318875565,0.54269847,30559.0,30558.0,0.266634]
[1688318880068,0.18189847,30559.0,30558.0,0.266634]
[1688318880269,0.54269847,30559.0,30558.0,0.266634]
[1688318882477,0.79019847,30559.0,30558.0,0.266634]
[1688318892475,0.79029847,30559.0,30558.0,0.266634]
[1688318895274,0.77066447,30559.0,30558.0,0.28486369]
[1688318895475,0.16226447,30559.0,30558.0,0.28486369]
[1688318896176,0.16226447,30559.0,30558.0,0.28548345]
[1688318896473,0.33603892,30559.0,30558.0,0.28548345]
[1688318896775,0.18189847,30559.0,30558.0,0.28548345]
[1688318898581,0.54269847,30559.0,30558.0,0.28548345]
[1688318898780,0.54269847,30559.0,30558.0,0.30371314]
[1688318898978,0.52306447,30559.0,30558.0,0.30371314]
[1688318901583,0.16226447,30559.0,30558.0,0.30371314]
[1688318903379,0.33599399,30559.0,30558.0,0.30371314]
[1688318903579,0.40369852,30559.0,30558.0,0.30371314]
[1688318903771,0.07764469,30559.0,30558.0,0.30371314]
[1688318904582,0.32605383,30560.0,30558.0,0.30371314]
[1688318904783,0.27234345,30562.0,30559.0,0.64487914]
[1688318904994,0.27234345,30562.0,30561.0,0.2473]
[1688318905283,0.00049085,30562.0,30561.0,0.30401114]
[1688318906175,0.00049085,30562.0,30561.0,0.62281114]
[1688318908677,0.08509897,30562.0,30561.0,0.62281114]
[1688318909184,0.08509897,30562.0,30561.0,0.61631114]
[1688318909382,0.08509897,30562.0,30561.0,0.62281114]
[1688318909680,0.00049085,30562.0,30561.0,0.62281114]
[1688318910276,0.15278552,30562.0,30561.0,0.62281114]
[1688318912277,0.16183951,30562.0,30561.0,0.62281114]
[1688318915276,0.16183951,30562.0,30561.0,0.61631114]
[1688318916281,0.00954484,30562.0,30561.0,0.61631114]
[1688318918291,0.00954484,30562.0,30561.0,0.68301855]
[1688318921086,0.00954484,30562.0,30561.0,0.70871909]
[1688318921286,1.70178159,30567.0,30565.0,0.2473]
[1688318921487,0.06768416,30566.0,30565.0,0.296372]
[1688318921686,0.06768416,30566.0,30565.0,0.57955114]
[1688318922283,0.06768416,30566.0,30565.0,0.94035114]
[1688318922885,0.07673644,30566.0,30565.0,0.94035114]
[1688318924089,0.16133501,30566.0,30565.0,0.94035114]
[1688318926092,0.13464501,30566.0,30565.0,0.94035114]
[1688318926286,0.14240363,30566.0,30565.0,0.94035114]
[1688318927593,0.33297081,30566.0,30565.0,0.94035114]
[1688318928091,0.41756938,30566.0,30565.0,0.94035114]
[1688318929000,0.33297081,30566.0,30565.0,0.94035114]
[1688318931097,0.40064901,30566.0,30565.0,0.94035114]
[1688318931296,0.00775862,30566.0,30565.0,0.94035114]
[1688318934690,0.00775862,30566.0,30565.0,0.96661849]
[1688318938713,0.07543594,30566.0,30565.0,0.96661849]
[1688318942516,0.00017959,30567.0,30565.0,0.96661849]
[1688318942724,0.00017959,30567.0,30566.0,0.52987914]
[1688318942913,0.00017959,30567.0,30566.0,0.54950814]
[1688318943112,0.00017959,30567.0,30566.0,0.87420814]
[1688318943823,0.94131791,30570.0,30566.0,1.23500814]
[1688318944026,0.57777802,30570.0,30569.0,0.873527]
[1688318944220,0.557724,30574.0,30569.0,0.91060614]
[1688318944424,0.41088503,30573.0,30570.0,0.33177327]
[1688318944723,0.08458503,30572.0,30571.0,0.019626]
[1688318944926,0.08458503,30572.0,30571.0,0.266826]
[1688318945426,0.08458503,30572.0,30571.0,0.30390514]
[1688318946216,0.345925,30573.0,30571.0,0.30390514]
[1688318946421,0.345925,30573.0,30572.0,0.26522969]
[1688318946623,0.345925,30573.0,30572.0,0.30370414]
[1688318947229,0.3263,30573.0,30572.0,0.30370414]
[1688318947524,0.39396887,30573.0,30572.0,0.30370414]
[1688318950225,0.40028843,30573.0,30572.0,0.30370414]
[1688318953223,0.33261956,30573.0,30572.0,0.30370414]
[1688318953823,0.33261956,30573.0,30572.0,0.54940414]
[1688318953824,0.48487409,30573.0,30572.0,0.54940414]
[1688318954029,0.72761029,30573.0,30572.0,0.54940414]
[1688318954923,0.4868082,30573.0,30572.0,0.54940414]
[1688318955524,0.7275423,30573.0,30572.0,0.54940414]
[1688318958129,0.40222725,30573.0,30572.0,0.54940414]
[1688318958824,0.37616725,30573.0,30572.0,0.54940414]
[1688318960332,0.34708233,30573.0,30572.0,0.54940414]
[1688318960734,0.33935591,30573.0,30572.0,0.54940414]
[1688318961243,0.27168723,30573.0,30572.0,0.54940414]
[1688318962134,0.00049065,30575.0,30572.0,0.54940414]
[1688318962434,0.557724,30579.0,30574.0,0.8541]
[1688318962738,0.01962,30580.0,30578.0,0.8542]
[1688318962937,0.01962,30580.0,30579.0,0.30309914]
[1688318963236,0.06765651,30580.0,30579.0,0.30309914]
[1688318965238,0.08727651,30580.0,30579.0,0.30309914]
[1688318966334,0.01962,30580.0,30579.0,0.30309914]
[1688318966538,0.08727445,30580.0,30579.0,0.30309914]
[1688318967532,0.01962,30580.0,30579.0,0.30309914]
[1688318967834,0.324919,30581.0,30579.0,0.30309914]
[1688318968136,0.324919,30581.0,30580.0,0.28467914]
[1688318968334,0.324919,30581.0,30580.0,0.30429914]
[1688318968641,0.3053,30581.0,30580.0,0.30429914]
[1688318969025,0.324919,30581.0,30580.0,0.28606945]
[1688318969739,0.3351365,30581.0,30580.0,0.30429914]
[1688318970331,0.3351365,30581.0,30580.0,0.26722]
[1688318970537,0.5827365,30581.0,30580.0,0.2476]
[1688318970740,0.65039183,30581.0,30580.0,0.2476]
[1688318972439,0.65039183,30581.0,30580.0,0.26722]
[1688318976247,0.73496457,30581.0,30580.0,0.26722]
[1688318980049,1.09576457,30581.0,30580.0,0.26722]
[1688318983948,1.01119183,30581.0,30580.0,0.26722]
[1688318985456,1.01119183,30581.0,30580.0,0.28606945]
[1688318985840,1.01119183,30581.0,30580.0,0.26722]
[1688318986653,0.76359183,30581.0,30580.0,0.26722]
[1688318991354,0.84816432,30581.0,30580.0,0.26722]
[1688318991661,0.84816432,30581.0,30580.0,0.30429914]
[1688318992047,0.84816432,30581.0,30580.0,0.28606945]
[1688318993654,0.84816432,30581.0,30580.0,0.26722]
[1688318995557,0.0655,30579.0,30578.0,0.02674496]
[1688318995857,0.0655,30579.0,30576.0,0.00049052]
[1688318995858,0.69112,30579.0,30576.0,0.00049052]
[1688318996047,0.693521,30577.0,30576.0,0.00049052]
[1688318996242,0.84574882,30577.0,30576.0,0.00049052]
[1688318996456,0.84951447,30577.0,30576.0,0.00049052]
[1688318996640,0.84951447,30577.0,30573.0,0.2476]
[1688318996847,0.6084,30574.0,30573.0,0.2476]
[1688318997045,0.78025082,30574.0,30573.0,0.2476]
[1688318998057,0.78401635,30574.0,30573.0,0.2476]
[1688318998846,0.69944386,30574.0,30573.0,0.2476]
[1688318999542,0.45184386,30574.0,30573.0,0.2476]
[1688319002855,0.38418853,30574.0,30573.0,0.2476]
[1688319004848,0.62938853,30574.0,30573.0,0.14597277]
[1688319005048,0.95500253,30574.0,30573.0,0.14597277]
[1688319005652,1.03959799,30574.0,30573.0,0.14597277]
[1688319006160,1.04088908,30574.0,30573.0,0.14597277]
[1688319006357,0.71527508,30574.0,30573.0,0.14597277]
[1688319008654,0.0655,30573.0,30570.0,0.00049062]
[1688319008857,0.6083,30571.0,30570.0,0.00049062]
[1688319009162,0.71252003,30571.0,30570.0,0.00049062]
[1688319009358,0.71563637,30571.0,30570.0,0.00049062]
[1688319009763,0.71252003,30571.0,30570.0,0.00049062]
[1688319010262,0.71902003,30571.0,30570.0,0.00049062]
[1688319013760,0.634425,30571.0,30570.0,0.00049062]
[1688319015266,0.627925,30571.0,30570.0,0.00049062]
[1688319016162,0.749925,30571.0,30570.0,0.00049062]
[1688319017351,0.768925,30571.0,30570.0,0.00049062]
[1688319017554,0.787925,30571.0,30570.0,0.00049062]
[1688319018867,0.787925,30571.0,30570.0,0.00038655]
[1688319020867,0.81368796,30571.0,30570.0,0.00038655]
[1688319022063,0.01963,30565.0,30559.0,0.2451]
[1688319022259,0.380433,30560.0,30559.0,0.07402951]
[1688319022455,0.39845937,30560.0,30559.0,0.36202221]
[1688319022968,0.39845937,30560.0,30559.0,0.3076267]
[1688319023164,0.39845937,30560.0,30559.0,0.28939701]
[1688319023666,0.39845937,30560.0,30559.0,0.27054756]
[1688319031081,0.03765937,30560.0,30559.0,0.3076267]
[1688319034580,0.03765937,30560.0,30559.0,0.28939701]
[1688319034986,0.03765937,30560.0,30559.0,0.3076267]
[1688319035378,0.03765937,30560.0,30559.0,0.30747378]
[1688319038271,0.03765937,30560.0,30559.0,0.28924409]
[1688319039187,0.03765937,30560.0,30559.0,0.27039464]
[1688319039993,0.03765937,30560.0,30559.0,0.25091356]
[1688319045785,0.39845937,30560.0,30559.0,0.25091356]
[1688319046088,0.64475937,30560.0,30559.0,0.00451356]
[1688319046496,0.64475937,30560.0,30559.0,0.00457356]
[1688319057098,0.64475937,30560.0,30559.0,0.02420756]
[1688319057297,0.64475937,30560.0,30559.0,0.00457356]
[1688319058002,0.64475937,30560.0,30559.0,6e-05]
[1688319058389,0.64475937,30560.0,30559.0,0.00508994]
[1688319066004,0.28395937,30560.0,30559.0,0.00508994]
[1688319066201,1.00555937,30560.0,30559.0,0.00508994]
[1688319066396,1.09018867,30560.0,30559.0,0.00508994]
[1688319066594,1.64791267,30560.0,30559.0,0.00508994]
[1688319067898,1.71341267,30560.0,30559.0,0.00181764]
[1688319068107,0.05,30558.0,30556.0,0.00049085]
[1688319068408,1.04379067,30557.0,30556.0,0.00049085]
[1688319068807,1.34979067,30557.0,30556.0,0.00049085]
[1688319068992,1.90751467,30557.0,30556.0,0.00049085]
[1688319071404,1.9074153,30557.0,30556.0,0.00049085]
[1688319073699,1.5466153,30557.0,30556.0,0.00049085]
[1688319073900,2.183586,30557.0,30556.0,0.00049085]
[1688319080613,2.183586,30557.0,30556.0,0.00978022]
[1688319081416,2.26822766,30557.0,30556.0,0.00978022]
[1688319082706,2.26822766,30557.0,30556.0,0.00049085]
[1688319083617,1.54662766,30557.0,30556.0,0.00049085]
[1688319083815,2.26822766,30557.0,30556.0,0.00049085]
[1688319085610,2.26832703,30557.0,30556.0,0.00049085]
[1688319085808,2.26832703,30557.0,30556.0,0.00035137]
[1688319087621,1.40162703,30557.0,30556.0,0.00035137]
[1688319087809,1.64922703,30557.0,30556.0,0.27660071]
[1688319088113,1.20378537,30557.0,30556.0,0.27660071]
[1688319088704,1.20378537,30557.0,30556.0,0.60800071]
[1688319088916,0.64606137,30557.0,30556.0,0.60800071]
[1688319090718,0.64606137,30557.0,30556.0,0.6262304]
[1688319091118,0.64606137,30557.0,30556.0,0.60800071]
[1688319091306,0.64606137,30557.0,30556.0,0.6262304]
[1688319091511,0.64606137,30557.0,30556.0,0.60800071]
[1688319092219,0.64606137,30557.0,30556.0,0.36100071]
[1688319095824,0.64606137,30557.0,30556.0,0.34136471]
[1688319096522,0.73069595,30557.0,30556.0,0.34136471]
[1688319098114,1.09149595,30557.0,30556.0,0.34136471]
[1688319098929,0.36989595,30557.0,30556.0,0.34136471]
[1688319099130,1.09149595,30557.0,30556.0,0.34136471]
[1688319104038,1.00686137,30557.0,30556.0,0.34136471]
[1688319111033,1.00686137,30557.0,30556.0,0.34142471]
[1688319111530,1.09149745,30557.0,30556.0,0.34142471]
[1688319112530,1.33889745,30557.0,30556.0,0.34142471]
[1688319114737,1.89662145,30557.0,30556.0,0.34142471]
[1688319117549,1.96212145,30557.0,30556.0,0.34142471]
[1688319117750,0.0655,30555.0,30549.0,0.0491]
[1688319118052,0.62642637,30550.0,30548.0,0.058922]
[1688319118254,0.26594,30549.0,30548.0,0.058922]
[1688319118549,0.28396637,30549.0,30548.0,0.058922]
[1688319118934,0.28396637,30549.0,30548.0,0.389722]
[1688319119345,0.28396637,30549.0,30548.0,0.39693618]
[1688319120954,0.28396637,30549.0,30548.0,0.33801418]
[1688319123251,0.28396637,30549.0,30548.0,0.34027941]
[1688319131656,0.28396637,30549.0,30548.0,0.34004604]
[1688319139460,0.28396637,30549.0,30548.0,0.60608704]
[1688319139965,0.28396637,30549.0,30548.0,0.62431673]
[1688319140269,0.28396637,30549.0,30548.0,0.58644604]
[1688319140475,0.28396637,30549.0,30548.0,0.34004604]
[1688319147679,0.64476637,30549.0,30548.0,0.34004604]
[1688319148774,0.64476637,30549.0,30548.0,0.35968704]
[1688319149680,0.64476637,30549.0,30548.0,0.34004604]
[1688319150778,0.64476637,30549.0,30548.0,0.35968704]
[1688319151078,0.64476637,30549.0,30548.0,0.34004604]
[1688319151872,0.64476637,30549.0,30548.0,0.35968704]
[1688319152591,0.64476637,30549.0,30548.0,0.34004604]
[1688319160386,0.72942184,30549.0,30548.0,0.34004604]
[1688319164091,0.64476637,30549.0,30548.0,0.34004604]
[1688319170092,1.00556637,30549.0,30548.0,0.34004604]
[1688319171489,1.09022384,30549.0,30548.0,0.34004604]
[1688319172999,1.09022384,30549.0,30548.0,0.34010604]
[1688319186102,1.64794784,30549.0,30548.0,0.34010604]
[1688319189107,1.74954138,30549.0,30548.0,0.34010604]
[1688319190404,1.64794784,30549.0,30548.0,0.34010604]
[1688319192408,1.74953991,30549.0,30548.0,0.34010604]
[1688319194113,1.64794784,30549.0,30548.0,0.34010604]
[1688319195306,1.64794784,30549.0,30548.0,0.00953941]
[1688319195818,1.64794784,30549.0,30548.0,0.01040215]
[1688319205611,1.69794784,30549.0,30548.0,0.01040215]
[1688319205807,1.69794784,30549.0,30548.0,0.0101909]
[1688319206113,1.94554784,30549.0,30548.0,0.00775735]
[1688319206314,1.94554784,30549.0,30546.0,0.3271]
[1688319206611,0.51272637,30547.0,30545.0,0.00049102]
[1688319206807,0.71139947,30546.0,30545.0,0.00049102]
[1688319207117,0.72942584,30546.0,30545.0,0.00824837]
[1688319207312,1.05152584,30546.0,30545.0,0.00824837]
[1688319210323,1.05152584,30546.0,30545.0,0.00049102]
[1688319211731,0.05,30544.0,30531.0,0.065505]
[1688319211920,0.05,30544.0,30535.0,0.3085]
[1688319211921,0.3608,30536.0,30535.0,0.3085]
[1688319212120,1.09143284,30536.0,30535.0,0.01713903]
[1688319212328,1.09143284,30536.0,30533.0,0.05439551]
[1688319212527,0.2476,30534.0,30533.0,0.05672914]
[1688319212829,0.36993384,30534.0,30533.0,0.05664782]
[1688319213017,0.17223384,30534.0,30533.0,0.43997302]
[1688319213218,0.08757637,30534.0,30533.0,0.43997302]
[1688319213413,0.08757637,30534.0,30533.0,0.38557751]
[1688319213632,0.08757637,30534.0,30533.0,0.34849837]
[1688319214034,0.08757637,30534.0,30533.0,0.36734782]
[1688319214523,0.01802637,30534.0,30533.0,0.36734782]
[1688319214717,0.26725,30534.0,30533.0,0.63067751]
[1688319215125,0.23125,30534.0,30533.0,0.63067751]
[1688319215326,0.21325,30534.0,30533.0,0.63067751]
[1688319215623,0.16695,30534.0,30533.0,0.63067751]
[1688319215823,0.16695,30534.0,30533.0,0.61244782]
[1688319216032,0.16695,30534.0,30533.0,0.59359837]
[1688319216724,0.62565,30534.0,30533.0,0.32884837]
[1688319218837,0.93935,30534.0,30533.0,0.32884837]
[1688319225629,1.00495,30534.0,30530.0,0.00049126]
[1688319225929,0.628052,30531.0,30530.0,0.00049126]
[1688319226329,0.628052,30531.0,30530.0,0.01862402]
[1688319227737,0.938552,30531.0,30530.0,0.01862402]
[1688319234534,0.628052,30531.0,30530.0,0.01862402]
[1688319234940,0.628052,30531.0,30530.0,0.03747347]
[1688319235538,0.628052,30531.0,30530.0,0.01862402]
[1688319235739,0.628052,30531.0,30530.0,0.03827602]
[1688319235952,0.627992,30531.0,30530.0,0.03827602]
[1688319236645,0.627992,30531.0,30530.0,0.01862402]
[1688319243345,0.627992,30531.0,30530.0,0.03827602]
[1688319244252,0.627992,30531.0,30530.0,0.01862402]
[1688319249638,0.627992,30531.0,30530.0,0.05712547]
[1688319249839,0.627992,30531.0,30530.0,0.30222547]
[1688319250245,0.627992,30531.0,30530.0,0.32045516]
[1688319252546,0.380392,30531.0,30530.0,0.32045516]
[1688319253448,0.36074,30531.0,30530.0,0.32045516]
[1688319255454,0.019649,30535.0,30530.0,0.32045516]
[1688319255656,0.019649,30535.0,30534.0,0.6066]
[1688319255852,0.61715826,30537.0,30534.0,0.64447869]
[1688319256054,0.61715826,30537.0,30536.0,0.2464]
[1688319256055,0.00049126,30537.0,30536.0,0.2464]
[1688319256357,0.00049126,30537.0,30536.0,0.29824266]
[1688319256747,0.02013826,30537.0,30536.0,0.29824266]
[1688319257960,0.02013826,30537.0,30536.0,0.31709211]
[1688319262359,0.2476,30539.0,30536.0,0.31709211]
[1688319262551,0.019645,30540.0,30539.0,0.019645]
[1688319262750,0.019645,30540.0,30539.0,0.266845]
[1688319263156,0.10432118,30540.0,30539.0,0.30392414]
[1688319263358,0.019645,30540.0,30539.0,0.30392414]
[1688319265253,0.31178,30542.0,30539.0,0.30392414]
[1688319265454,0.08467566,30541.0,30540.0,0.08619014]
[1688319265663,0.08467566,30541.0,30540.0,0.61864806]
[1688319265664,0.10431966,30541.0,30540.0,0.61864806]
[1688319266057,0.10431966,30541.0,30540.0,0.6557272]
[1688319267463,0.019644,30541.0,30540.0,0.6557272]
[1688319267859,0.05942117,30543.0,30540.0,0.6557272]
[1688319268055,0.05942117,30543.0,30542.0,0.6081]
[1688319268262,0.14409299,30543.0,30542.0,0.627743]
[1688319268562,0.14409299,30543.0,30542.0,0.73002132]
[1688319268759,0.14409299,30543.0,30542.0,0.67562581]
[1688319268955,0.08516299,30543.0,30542.0,0.67562581]
[1688319269165,0.00049117,30543.0,30542.0,0.73002132]
[1688319272468,0.383523,30547.0,30543.0,0.03707914]
[1688319272675,0.383523,30547.0,30546.0,0.2464]
[1688319272864,0.383523,30547.0,30546.0,0.266041]
[1688319273169,0.383523,30547.0,30546.0,0.30312014]
[1688319273471,0.383523,30547.0,30546.0,0.31392424]
[1688319274764,0.383523,30547.0,30546.0,0.2768451]
[1688319275655,0.383523,30547.0,30546.0,0.29507479]
[1688319276066,0.383523,30547.0,30546.0,0.2768451]
[1688319276958,0.383523,30547.0,30546.0,0.29569455]
[1688319277763,0.383523,30547.0,30546.0,0.31392424]
[1688319278967,0.383523,30547.0,30546.0,0.29569455]
[1688319280180,0.383523,30547.0,30546.0,0.2768451]
[1688319280572,0.383523,30547.0,30546.0,0.29569455]
[1688319281772,0.383523,30547.0,30546.0,0.2768451]
[1688319281973,0.631123,30547.0,30546.0,0.2755451]
[1688319285872,0.631123,30547.0,30546.0,0.31262424]
[1688319286373,0.631123,30547.0,30546.0,0.29439455]
[1688319288175,0.631123,30547.0,30546.0,0.31262424]
[1688319289069,0.631123,30547.0,30546.0,0.29439455]
[1688319289268,0.631123,30547.0,30546.0,0.31262424]
[1688319289476,0.631123,30547.0,30546.0,0.29439455]
[1688319289864,0.631123,30547.0,30546.0,0.2755451]
[1688319292675,0.383523,30547.0,30546.0,0.2768451]
[1688319292874,0.631123,30547.0,30546.0,0.0304451]